fUSD/lending_fUSD_20260405
["ID","MTS","AMOUNT","RATE_DAILY","PERIOD"]
[419815924,1775395847022,-500.0,0.00013698,2]
[419815925,1775395847032,-564.47521126,0.00013698,2]
[419815926,1775395847041,-500.0,0.00013698,2]
[419815927,1775395847051,-504.35317897,0.00013698,2]
[419815928,1775395847060,-806.66,0.00013698,2]
[419815929,1775395847070,-806.66,0.00013698,2]
[419815930,1775395847079,-806.66,0.00013698,2]
[419815931,1775395847089,-806.66,0.00013698,2]
[419815932,1775395847100,-806.66,0.00013698,2]
[419815933,1775395847111,-806.66,0.00013698,2]
[419815934,1775395847122,-806.66,0.00013698,2]
[419815935,1775395847132,-806.66,0.00013698,2]
[419815936,1775395847142,-806.66,0.00013698,2]
[419815937,1775395847151,-806.66,0.00013698,2]
[419815938,1775395847161,-806.66,0.00013698,2]
[419815939,1775395847170,-806.66,0.00013698,2]
[419815940,1775395847179,-806.66,0.00013698,2]
[419815941,1775395847188,-806.66,0.00013698,2]
[419815942,1775395847197,-806.66,0.00013698,2]
[419815943,1775395847207,-806.66,0.00013698,2]
[419815944,1775395847216,-184.01671123,0.00013698,2]
[419815945,1775395847226,-1268.28,0.00013698,2]
[419815946,1775395847235,-1268.28,0.00013698,2]
[419815947,1775395847244,-1268.28,0.00013698,2]
[419815948,1775395847253,-1268.28,0.00013698,2]
[419815949,1775395847263,-1268.28,0.00013698,2]
[419815950,1775395847272,-1268.28,0.00013698,2]
[419815951,1775395847282,-1268.28,0.00013698,2]
[419815952,1775395847291,-1268.28,0.00013698,2]
[419815953,1775395847300,-1268.28,0.00013698,2]
[419815954,1775395847310,-1268.28,0.00013698,2]
[419815955,1775395847319,-1268.28,0.00013698,2]
[419815956,1775395847328,-1268.28,0.00013698,2]
[419815957,1775395847338,-1268.28,0.00013698,2]
[419815958,1775395847347,-1268.28,0.00013698,2]
[419815959,1775395847356,-1268.28,0.00013698,2]
[419815960,1775395847366,-1268.28,0.00013698,2]
[419815961,1775395847376,-500.0,0.00013698,2]
[419815962,1775395847387,-500.0,0.00013698,2]
[419815963,1775395847396,-500.0,0.00013698,2]
[419815964,1775395847405,-500.0,0.00013698,2]
[419815965,1775395847414,-500.0,0.00013698,2]
[419815966,1775395847424,-500.0,0.00013698,2]
[419815967,1775395847433,-500.0,0.00013698,2]
[419815968,1775395847442,-500.0,0.00013698,2]
[419815969,1775395847452,-500.0,0.00013698,2]
[419815970,1775395847461,-500.0,0.00013698,2]
[419815971,1775395847471,-500.0,0.00013698,2]
[419815972,1775395847481,-500.0,0.00013698,2]
[419815973,1775395847490,-500.0,0.00013698,2]
[419815974,1775395847499,-500.0,0.00013698,2]
[419815975,1775395847508,-500.0,0.00013698,2]
[419815976,1775395847518,-500.0,0.00013698,2]
[419815977,1775395847527,-500.0,0.00013698,2]
[419815978,1775395847536,-500.0,0.00013698,2]
[419815979,1775395847545,-500.0,0.00013698,2]
[419815980,1775395847555,-500.0,0.00013698,2]
[419815981,1775395847564,-500.0,0.00013698,2]
[419815982,1775395847574,-500.0,0.00013698,2]
[419815983,1775395847583,-500.0,0.00013698,2]
[419815984,1775395847592,-500.0,0.00013698,2]
[419815985,1775395847602,-500.0,0.00013698,2]
[419815986,1775395847612,-500.0,0.00013698,2]
[419815987,1775395847623,-500.0,0.00013698,2]
[419815988,1775395847632,-500.0,0.00013698,2]
[419815989,1775395847642,-500.0,0.00013698,2]
[419815990,1775395847652,-500.0,0.00013698,2]
[419815991,1775395847662,-500.0,0.00013698,2]
[419815992,1775395847673,-568.42076477,0.00013698,2]
[419815993,1775395847683,-150.0,0.00013699,2]
[419815994,1775395847692,-150.0,0.00013699,2]
[419815995,1775395847702,-150.0,0.00013699,2]
[419815996,1775395847711,-150.0,0.00013699,2]
[419815997,1775395847720,-150.0,0.00013699,2]
[419815998,1775395847730,-150.0,0.00013699,2]
[419815999,1775395847739,-150.0,0.00013699,2]
[419816000,1775395847748,-150.0,0.00013699,2]
[419816001,1775395847757,-476.08,0.00013699,2]
[419816002,1775395847766,-396.73,0.00013699,2]
[419816003,1775395847776,-330.61,0.00013699,2]
[419816004,1775395847786,-275.51,0.00013699,2]
[419816005,1775395847795,-229.59,0.00013699,2]
[419816006,1775395847805,-191.33,0.00013699,2]
[419816007,1775395847814,-159.44,0.00013699,2]
[419816008,1775395847824,-200.0,0.00013699,2]
[419816009,1775395847833,-797.21,0.00013699,2]
[419816010,1775395847842,-717.06,0.00013699,2]
[419816011,1775395847852,-500.0,0.00013699,2]
[419816012,1775395847860,-161.91170216,0.00013699,2]
[419816013,1775395847870,-500.0,0.00013699,2]
[419816014,1775395847879,-500.0,0.00013699,2]
[419816015,1775395847889,-500.0,0.00013699,2]
[419816016,1775395847898,-500.0,0.00013699,2]
[419816017,1775395847907,-500.0,0.00013699,2]
[419816018,1775395847916,-160.34417201,0.00013699,2]
[419816019,1775395847925,-500.0,0.00013699,2]
[419816020,1775395847934,-500.13152132,0.00013699,2]
[419816021,1775395847943,-500.0,0.00013699,2]
[419816022,1775395847952,-211.04857142,0.00013699,2]
[419816023,1775395847961,-500.0,0.00013699,2]
[419816024,1775395847973,-500.0,0.00013699,2]
[419816025,1775395847983,-500.0,0.00013699,2]
[419816026,1775395847992,-500.0,0.00013699,2]
[419816027,1775395848002,-500.0,0.00013699,2]
[419816028,1775395848011,-385.86149772,0.00013699,2]
[419816029,1775395848021,-500.0,0.00013699,2]
[419816030,1775395848032,-500.0,0.00013699,2]
[419816031,1775395848042,-500.0,0.00013699,2]
[419816032,1775395848053,-500.0,0.00013699,2]
[419816033,1775395848063,-500.0,0.00013699,2]
[419816034,1775395848073,-500.0,0.00013699,2]
[419816035,1775395848083,-500.0,0.00013699,2]
[419816036,1775395848092,-598.99606082,0.00013699,2]
[419816037,1775395848103,-500.0,0.00013699,2]
[419816038,1775395848114,-403.93256284,0.00013699,2]
[419816039,1775395848125,-163.60261744,0.00013699,2]
[419816040,1775395848135,-500.0,0.00013699,2]
[419816041,1775395848145,-500.0,0.00013699,2]
[419816042,1775395848155,-500.0,0.00013699,2]
[419816043,1775395848164,-500.0,0.00013699,2]
[419816044,1775395848174,-339.79133416,0.00013699,2]
[419816045,1775395848184,-500.0,0.00013699,2]
[419816046,1775395848193,-500.0,0.00013699,2]
[419816047,1775395848204,-500.0,0.00013699,2]
[419816048,1775395848214,-500.0,0.00013699,2]
[419816049,1775395848224,-202.64993829,0.00013699,2]
[419816050,1775395848235,-500.0,0.00013699,2]
[419816051,1775395848244,-500.0,0.00013699,2]
[419816052,1775395848254,-500.0,0.00013699,2]
[419816053,1775395848264,-500.0,0.00013699,2]
[419816054,1775395848273,-519.03182682,0.00013699,2]
[419816055,1775395848282,-500.0,0.00013699,2]
[419816056,1775395848292,-500.0,0.00013699,2]
[419816057,1775395848302,-500.0,0.00013699,2]
[419816058,1775395848313,-518.73332026,0.00013699,2]
[419816059,1775395848323,-500.0,0.00013699,2]
[419816060,1775395848334,-500.0,0.00013699,2]
[419816061,1775395848344,-607.20051974,0.00013699,2]
[419816062,1775395848354,-569.20510167,0.00013699,2]
[419816063,1775395848364,-500.0,0.00013699,2]
[419816064,1775395848373,-168.69935806,0.00013699,2]
[419816065,1775395848382,-500.0,0.00013699,2]
[419816066,1775395848392,-500.0,0.00013699,2]
[419816067,1775395848402,-500.0,0.00013699,2]
[419816068,1775395848413,-500.0,0.00013699,2]
[419816069,1775395848422,-312.74353669,0.00013699,2]
[419816070,1775395848431,-162.72924009,0.00013699,2]
[419816071,1775395848441,-210.98153295,0.00013699,2]
[419816072,1775395848451,-160.7467095,0.00013699,2]
[419816073,1775395848460,-500.0,0.00013699,2]
[419816074,1775395848469,-500.0,0.00013699,2]
[419816075,1775395848479,-500.50066882,0.00013699,2]
[419816076,1775395848488,-500.0,0.00013699,2]
[419816077,1775395848497,-515.7358709,0.00013699,2]
[419816078,1775395848506,-155.06,0.00013699,2]
[419816079,1775395848515,-511.89281179,0.00013699,2]
[419816080,1775395848524,-157.0,0.000137,2]
[419816081,1775395848535,-157.0,0.000137,2]
[419816082,1775395848544,-157.0,0.000137,2]
[419816083,1775395848553,-162.49,0.000137,2]
[419816084,1775395848562,-481.62,0.00013713,2]
[419816085,1775395848572,-285.83058444,0.00013751,2]
[419816086,1775395848581,-1000.0,0.00013767,7]
[419816087,1775395848591,-500.0,0.00013781,2]
[419816088,1775395848600,-218.0418,0.000138,2]
[419816089,1775395848610,-2000.0,0.00013836,2]
[419816090,1775395848619,-200.0,0.00013836,2]
[419816091,1775395848628,-1788.38122651,0.00013836,2]
[419816092,1775395848638,-377.75054405,0.0001386,2]
[419816093,1775395848647,-429.33520367,0.0001386,2]
[419816094,1775395848656,-3085.55919426,0.0001386,2]
[419816095,1775395848666,-730.95086099,0.00013879,2]
[419816096,1775395848675,-153.0,0.00013896,3]
[419816097,1775395848684,-200.0604195,0.000139,2]
[419816098,1775395848694,-1600.0,0.00013935,2]
[419816099,1775395848703,-881.74,0.00013939,2]
[419816100,1775395848712,-458.14168293,0.00013965,2]
[419816101,1775395848722,-150.0,0.00013973,2]
[419816102,1775395848731,-150.0,0.00013973,2]
[419816103,1775395848740,-150.0,0.00013973,2]
[419816104,1775395848750,-150.0,0.00013973,2]
[419816105,1775395848759,-150.0,0.00013973,2]
[419816106,1775395848768,-150.0,0.00013973,2]
[419816107,1775395848778,-379.02063693,0.00014049,7]
[419816108,1775395848787,-63100.90930348,0.00014052,2]
[419816109,1775395848797,-6453.0,0.00014057,2]
[419816110,1775395848806,-60000.0,0.00014115,2]
[419816111,1775395848815,-747.18699912,0.00014152,2]
[419816112,1775395848825,-1005.7659229,0.00014152,2]
[419816113,1775395848835,-5463.11874877,0.00014152,2]
[419816114,1775395848844,-160.0,0.00014168,2]
[419816115,1775395848854,-157.0,0.000142,2]
[419816116,1775395848864,-881.74,0.00014212,2]
[419816117,1775395848873,-2129.0,0.00014214,2]
[419816118,1775395848883,-150.0,0.00014247,2]
[419816119,1775395848893,-150.0,0.00014247,2]
[419816120,1775395848904,-150.0,0.00014247,2]
[419816121,1775395848914,-150.0,0.00014247,2]
[419816122,1775395848925,-150.0,0.00014247,2]
[419816123,1775395848936,-150.0,0.00014247,2]
[419816124,1775395848947,-1000.0,0.00014247,2]
[419816125,1775395848958,-861.43877969,0.00014247,2]
[419816126,1775395848968,-1000.0,0.00014247,2]
[419816127,1775395848978,-308.03873246,0.00014247,2]
[419816128,1775395848988,-1000.0,0.00014247,2]
[419816129,1775395848998,-627.70930647,0.00014247,2]
[419816130,1775395849008,-1000.0,0.00014247,2]
[419816131,1775395849020,-500.76237275,0.00014247,2]
[419816132,1775395849030,-1000.0,0.00014247,2]
[419816133,1775395849040,-1000.0,0.00014247,2]
[419816134,1775395849050,-1000.0,0.00014247,2]
[419816136,1775395849060,-180.00096908,0.00014247,2]
[419816138,1775395849069,-1000.0,0.00014247,2]
[419816140,1775395849079,-1000.0,0.00014247,2]
[419816141,1775395849090,-1000.0,0.00014247,2]
[419816142,1775395849100,-1000.0,0.00014247,2]
[419816143,1775395849111,-1000.0,0.00014247,2]
[419816144,1775395849121,-1000.0,0.00014247,2]
[419816145,1775395849132,-730.09729929,0.00014247,2]
[419816146,1775395849142,-1000.0,0.00014247,2]
[419816147,1775395849152,-1000.0,0.00014247,2]
[419816148,1775395849163,-1000.0,0.00014247,2]
[419816149,1775395849172,-1000.0,0.00014247,2]
[419816150,1775395849182,-1000.0,0.00014247,2]
[419816151,1775395849192,-1000.0,0.00014247,2]
[419816152,1775395849203,-1000.0,0.00014247,2]
[419816153,1775395849214,-1000.0,0.00014247,2]
[419816154,1775395849226,-1000.0,0.00014247,2]
[419816155,1775395849235,-1000.0,0.00014247,2]
[419816156,1775395849245,-1000.0,0.00014247,2]
[419816157,1775395849255,-1000.0,0.00014247,2]
[419816158,1775395849265,-1000.0,0.00014247,2]
[419816159,1775395849275,-500.99241895,0.00014247,2]
[419816160,1775395849286,-1000.0,0.00014247,2]
[419816161,1775395849296,-1000.0,0.00014247,2]
[419816162,1775395849306,-1000.0,0.00014247,2]
[419816163,1775395849316,-189.74788311,0.00014247,2]
[419816164,1775395849326,-743.80429884,0.00014247,2]
[419816165,1775395849336,-790.32775663,0.00014247,2]
[419816166,1775395849346,-1000.0,0.00014247,2]
[419816167,1775395849356,-1000.0,0.00014247,2]
[419816168,1775395849366,-500.0,0.00014247,2]
[419816169,1775395849375,-1000.0,0.00014247,2]
[419816170,1775395849385,-1000.0,0.00014247,2]
[419816171,1775395849395,-1000.0,0.00014247,2]
[419816172,1775395849405,-503.0,0.00014264,3]
[419816173,1775395849414,-785.67,0.00014269,2]
[419816174,1775395849424,-151.0,0.00014349,3]
[419816175,1775395849434,-200.0,0.00014384,2]
[419816176,1775395849444,-765.22925782,0.00014384,2]
[419816177,1775395849453,-150.0,0.000144,2]
[419816178,1775395849463,-150.0,0.000144,2]
[419816179,1775395849473,-150.0,0.000144,2]
[419816180,1775395849482,-150.0,0.000144,2]
[419816181,1775395849492,-150.0,0.000144,2]
[419816182,1775395849502,-150.0,0.000144,2]
[419816183,1775395849512,-150.0,0.000144,2]
[419816184,1775395849521,-150.0,0.000144,2]
[419816185,1775395849532,-150.0,0.000144,2]
[419816186,1775395849541,-150.0,0.000144,2]
[419816187,1775395849551,-150.0,0.000144,2]
[419816188,1775395849561,-150.05716299,0.000144,2]
[419816189,1775395849571,-150.0,0.000144,2]
[419816190,1775395849580,-150.0,0.000144,2]
[419816191,1775395849590,-150.0,0.000144,2]
[419816192,1775395849599,-150.0,0.00014417,2]
[419816193,1775395849609,-150.0,0.00014421,2]
[419816194,1775395849619,-150.0,0.00014423,2]
[419816195,1775395849628,-150.0,0.00014428,2]
[419816196,1775395849638,-150.0,0.00014428,2]
[419816197,1775395849648,-150.0,0.00014429,2]
[419816198,1775395849658,-150.0,0.00014435,2]
[419816199,1775395849667,-150.0,0.00014441,2]
[419816200,1775395849677,-150.0,0.00014445,2]
[419816201,1775395849687,-150.0,0.00014452,2]
[419816202,1775395849697,-150.0,0.00014452,2]
[419816203,1775395849707,-150.0,0.00014456,2]
[419816204,1775395849717,-150.0,0.00014456,2]
[419816205,1775395849726,-150.0,0.00014458,2]
[419816206,1775395849736,-150.0,0.00014462,2]
[419816207,1775395849746,-150.0,0.00014464,2]
[419816208,1775395849756,-150.0,0.00014468,2]
[419816209,1775395849766,-150.0,0.0001447,2]
[419816210,1775395849776,-150.0,0.00014482,2]
[419816211,1775395849785,-150.0,0.00014484,2]
[419816212,1775395849796,-150.0,0.00014484,2]
[419816213,1775395849805,-881.74,0.00014486,2]
[419816214,1775395849816,-150.0,0.00014487,2]
[419816215,1775395849825,-150.0,0.00014487,2]
[419816216,1775395849835,-150.0,0.00014489,2]
[419816217,1775395849845,-150.0,0.0001449,2]
[419816218,1775395849855,-150.0,0.00014503,2]
[419816219,1775395849865,-150.0,0.00014503,2]
[419816220,1775395849875,-150.0,0.00014504,2]
[419816221,1775395849884,-150.0,0.00014512,2]
[419816222,1775395849894,-150.0,0.00014512,2]
[419816223,1775395849904,-150.0,0.00014513,2]
[419816224,1775395849914,-150.0,0.00014516,2]
[419816225,1775395849923,-150.0,0.00014522,2]
[419816226,1775395849933,-150.0,0.00014523,2]
[419816227,1775395849943,-150.0,0.00014528,2]
[419816228,1775395849952,-150.0,0.00014535,2]
[419816229,1775395849962,-150.0,0.00014539,2]
[419816230,1775395849973,-150.0,0.0001454,2]
[419816231,1775395849983,-150.0,0.0001454,2]
[419816232,1775395849993,-785.67,0.00014543,2]
[419816233,1775395850004,-150.0,0.00014544,2]
[419816234,1775395850017,-150.0,0.00014545,2]
[419816235,1775395850027,-150.0,0.00014555,2]
[419816236,1775395850038,-150.0,0.00014557,2]
[419816237,1775395850048,-150.0,0.00014558,2]
[419816238,1775395850059,-150.0,0.00014564,2]
[419816239,1775395850069,-482.2,0.00014566,2]
[419816240,1775395850078,-150.0,0.00014568,2]
[419816241,1775395850088,-150.0,0.00014568,2]
[419816242,1775395850098,-150.0,0.00014574,2]
[419816243,1775395850108,-150.0,0.00014575,2]
[419816244,1775395850118,-150.0,0.00014578,2]
[419816245,1775395850128,-150.0,0.0001458,2]
[419816246,1775395850139,-150.0,0.00014585,2]
[419816247,1775395850149,-482.2,0.00014588,2]
[419816248,1775395850159,-150.0,0.00014591,2]
[419816249,1775395850169,-150.0,0.00014592,2]
[419816250,1775395850179,-150.0,0.00014596,2]
[419816251,1775395850189,-150.0,0.00014596,2]
[419816252,1775395850199,-150.0,0.00014603,2]
[419816253,1775395850209,-150.0,0.00014604,2]
[419816254,1775395850219,-150.0,0.00014605,2]
[419816255,1775395850229,-150.0,0.00014606,2]
[419816256,1775395850240,-150.0,0.00014609,2]
[419816257,1775395850251,-150.0,0.00014625,2]
[419816258,1775395850260,-150.0,0.00014625,2]
[419816259,1775395850270,-150.0,0.00014625,2]
[419816260,1775395850280,-150.0,0.00014626,2]
[419816261,1775395850290,-150.0,0.00014626,2]
[419816262,1775395850300,-150.0,0.00014633,2]
[419816263,1775395850310,-150.0,0.00014643,2]
[419816264,1775395850320,-150.0,0.00014646,2]
[419816265,1775395850330,-150.0,0.00014648,2]
[419816266,1775395850340,-150.0,0.00014653,2]
[419816267,1775395850350,-150.0,0.00014653,2]
[419816268,1775395850360,-150.0,0.00014656,2]
[419816269,1775395850369,-150.0,0.00014658,2]
[419816270,1775395850379,-150.0,0.00014661,2]
[419816271,1775395850389,-150.0,0.00014662,2]
[419816272,1775395850399,-150.0,0.00014667,2]
[419816273,1775395850409,-150.0,0.00014667,2]
[419816274,1775395850419,-150.0,0.00014667,2]
[419816275,1775395850429,-150.0,0.0001467,2]
[419816276,1775395850438,-150.0,0.00014678,2]
[419816277,1775395850448,-150.0,0.00014681,2]
[419816278,1775395850457,-150.0,0.00014681,2]
[419816279,1775395850467,-150.0,0.00014687,2]
[419816280,1775395850477,-150.0,0.00014691,2]
[419816281,1775395850486,-150.0,0.00014693,2]
[419816282,1775395850496,-150.0,0.00014696,2]
[419816283,1775395850505,-150.0,0.00014708,2]
[419816284,1775395850515,-150.0,0.00014709,2]
[419816285,1775395850524,-150.0,0.00014709,2]
[419816286,1775395850534,-150.0,0.0001471,2]
[419816287,1775395850544,-150.0,0.00014713,2]
[419816288,1775395850554,-150.0,0.00014715,2]
[419816289,1775395850564,-500.0,0.00014719,2]
[419816290,1775395850573,-150.0,0.0001472,2]
[419816291,1775395850583,-150.0,0.0001472,2]
[419816292,1775395850594,-150.0,0.00014728,2]
[419816293,1775395850603,-150.0,0.0001473,2]
[419816294,1775395850613,-150.0,0.00014737,2]
[419816295,1775395850623,-150.0,0.00014737,2]
[419816296,1775395850633,-150.0,0.00014738,2]
[419816297,1775395850643,-321.08,0.00014742,2]
[419816298,1775395850652,-150.0,0.00014748,2]
[419816299,1775395850662,-150.0,0.00014749,2]
[419816300,1775395850672,-150.0,0.00014749,2]
[419816301,1775395850682,-150.0,0.00014756,2]
[419816302,1775395850692,-881.74,0.0001476,2]
[419816303,1775395850702,-150.0,0.00014761,2]
[419816304,1775395850712,-150.0,0.00014761,2]
[419816305,1775395850721,-321.08,0.00014764,2]
[419816306,1775395850731,-150.0,0.00014765,2]
[419816307,1775395850741,-150.0,0.00014765,2]
[419816308,1775395850751,-150.0,0.00014765,2]
[419816309,1775395850760,-150.0,0.00014769,2]
[419816310,1775395850770,-578.20924308,0.00014774,2]
[419816311,1775395850780,-200.0,0.00014774,2]
[419816312,1775395850790,-9552.16786547,0.00014774,2]
[419816313,1775395850801,-500.0,0.00014774,2]
[419816314,1775395850811,-1428.38747117,0.00014774,2]
[419816315,1775395850821,-721.12765535,0.00014774,2]
[419816316,1775395850831,-209.40437684,0.00014774,2]
[419816317,1775395850840,-151.0,0.00014774,2]
[419816318,1775395850850,-151.0,0.00014774,2]
[419816319,1775395850860,-151.0,0.00014774,2]
[419816320,1775395850870,-154.76515316,0.00014774,2]
[419816321,1775395850880,-1000.0,0.00014774,2]
[419816322,1775395850890,-1000.0,0.00014774,2]
[419816323,1775395850900,-500.0,0.00014774,2]
[419816324,1775395850909,-1000.0,0.00014774,2]
[419816325,1775395850919,-500.0,0.00014774,2]
[419816326,1775395850929,-1000.0,0.00014774,2]
[419816327,1775395850938,-500.0,0.00014774,2]
[419816328,1775395850949,-1000.0,0.00014774,2]
[419816329,1775395850958,-500.0,0.00014774,2]
[419816330,1775395850968,-1000.0,0.00014774,2]
[419816331,1775395850978,-500.0,0.00014774,2]
[419816332,1775395850989,-1000.0,0.00014774,2]
[419816333,1775395850999,-500.0,0.00014774,2]
[419816334,1775395851009,-1000.0,0.00014774,2]
[419816335,1775395851019,-500.0,0.00014774,2]
[419816336,1775395851029,-1000.0,0.00014774,2]
[419816337,1775395851307,-3000.0,0.00014774,2]
[419816338,1775395851317,-500.0,0.00014774,2]
[419816339,1775395851326,-1000.0,0.00014774,2]
[419816340,1775395851336,-500.0,0.00014774,2]
[419816341,1775395851346,-3000.0,0.00014774,2]
[419816342,1775395851356,-1000.0,0.00014774,2]
[419816343,1775395851366,-500.0,0.00014774,2]
[419816344,1775395851375,-3000.0,0.00014774,2]
[419816345,1775395851385,-3000.0,0.00014774,2]
[419816346,1775395851395,-500.0,0.00014774,2]
[419816347,1775395851405,-209.40437684,0.00014774,2]
[419816348,1775395851415,-3000.0,0.00014774,2]
[419816350,1775395851425,-3000.0,0.00014774,2]
[419816351,1775395851435,-3000.0,0.00014774,2]
[419816352,1775395851444,-3000.0,0.00014774,2]
[419816353,1775395851454,-3000.0,0.00014774,2]
[419816354,1775395851463,-3000.0,0.00014774,2]
[419816355,1775395851473,-3000.0,0.00014774,2]
[419816356,1775395851483,-174.61919141,0.00014774,2]
[419816357,1775395851492,-743.50770149,0.00014774,2]
[419816358,1775395851502,-200.0,0.00014774,2]
[419816359,1775395851512,-151.0,0.00014774,2]
[419816360,1775395851522,-693.3919763,0.00014774,2]
[419816361,1775395851532,-151.0,0.00014774,2]
[419816362,1775395851541,-156.587,0.00014774,2]
[419816364,1775395851551,-195.25511793,0.00014774,2]
[419816365,1775395851561,-279.9045709,0.00014774,2]
[419816366,1775395851570,-500.0,0.00014774,2]
[419816367,1775395851580,-500.0,0.00014774,2]
[419816368,1775395851589,-500.0,0.00014774,2]
[419816369,1775395851599,-500.0,0.00014774,2]
[419816370,1775395851608,-500.0,0.00014774,2]
[419816371,1775395851618,-170.0,0.00014774,2]
[419816372,1775395851628,-170.0,0.00014774,2]
[419816373,1775395851637,-170.0,0.00014774,2]
[419816374,1775395851648,-170.0,0.00014774,2]
[419816375,1775395851657,-170.0,0.00014774,2]
[419816376,1775395851667,-170.0,0.00014774,2]
[419816377,1775395851677,-170.0,0.00014774,2]
[419816378,1775395851686,-170.0,0.00014774,2]
[419816379,1775395851696,-170.0,0.00014774,2]
[419816380,1775395851706,-170.0,0.00014774,2]
[419816381,1775395851716,-170.0,0.00014774,2]
[419816382,1775395851725,-150.0,0.00014778,2]
[419816383,1775395851735,-150.0,0.00014783,2]
[419816384,1775395851744,-150.0,0.00014783,2]
[419816385,1775395851754,-150.0,0.00014784,2]
[419816386,1775395851763,-321.08,0.00014787,2]
[419816387,1775395851773,-189.76708959,0.00014789,7]
[419816388,1775395851783,-150.0,0.0001479,2]
[419816389,1775395851792,-150.0,0.00014793,2]
[419816390,1775395851802,-150.0,0.00014793,2]
[419816391,1775395851812,-1227.692277,0.00014795,2]
[419816392,1775395851821,-953.31303788,0.00014795,2]
[419816393,1775395851830,-1515.96545288,0.00014795,2]
[419816394,1775395851840,-1500.0,0.00014795,2]
[419816395,1775395851849,-1500.0,0.00014795,2]
[419816396,1775395851858,-1500.0,0.00014795,2]
[419816397,1775395851868,-1500.0,0.00014795,2]
[419816398,1775395851877,-1500.0,0.00014795,2]
[419816399,1775395851887,-1500.0,0.00014795,2]
[419816400,1775395851897,-1500.0,0.00014795,2]
[419816401,1775395851906,-1500.0,0.00014795,2]
[419816402,1775395851916,-1500.0,0.00014795,2]
[419816403,1775395851926,-1500.0,0.00014795,2]
[419816404,1775395851936,-1500.0,0.00014795,2]
[419816405,1775395851948,-1500.0,0.00014795,2]
[419816406,1775395851958,-1318.06583411,0.00014795,2]
[419816407,1775395851968,-1500.0,0.00014795,2]
[419816408,1775395851977,-1500.0,0.00014795,2]
[419816409,1775395851987,-1500.0,0.00014795,2]
[419816410,1775395851996,-1500.0,0.00014795,2]
[419816411,1775395852006,-1503.24663382,0.00014795,2]
[419816412,1775395852016,-1500.0,0.00014795,2]
[419816413,1775395852026,-1500.0,0.00014795,2]
[419816414,1775395852035,-1500.0,0.00014795,2]
[419816415,1775395852045,-1500.0,0.00014795,2]
[419816416,1775395852055,-1500.0,0.00014795,2]
[419816417,1775395852066,-1500.0,0.00014795,2]
[419816418,1775395852076,-1500.0,0.00014795,2]
[419816419,1775395852086,-1500.0,0.00014795,2]
[419816420,1775395852097,-418.3764967,0.00014795,2]
[419816421,1775395852107,-1500.0,0.00014795,2]
[419816422,1775395852117,-1500.0,0.00014795,2]
[419816423,1775395852127,-1500.0,0.00014795,2]
[419816424,1775395852141,-553.41835149,0.00014795,2]
[419816425,1775395852151,-150.0,0.000148,2]
[419816426,1775395852160,-150.0,0.000148,2]
[419816427,1775395852170,-150.0,0.00014806,2]
[419816428,1775395852180,-150.0,0.00014807,2]